fUSD/lending_fUSD_20260612
["ID","MTS","AMOUNT","RATE_DAILY","PERIOD"]
[424918873,1781271071000,-191.923009,0.00032877,7]
[424918875,1781271071000,-151.0,0.00032877,7]
[424918878,1781271071000,-320.067124,0.00032877,7]
[424918877,1781271071000,-162.65682827,0.00032877,2]
[424918879,1781271071000,-320.067124,0.00032877,7]
[424918880,1781271071000,-320.067124,0.00032877,7]
[424918876,1781271071000,-166.190952,0.00032877,7]
[424918883,1781271071000,-320.067124,0.00032877,7]
[424918882,1781271071000,-320.067124,0.00032877,7]
[424918884,1781271071000,-320.067124,0.00032877,7]
[424918885,1781271071000,-320.067124,0.00032877,7]
[424918886,1781271071000,-320.067124,0.00032877,7]
[424918888,1781271071000,-320.067124,0.00032877,7]
[424918887,1781271071000,-320.067124,0.00032877,7]
[424918890,1781271071000,-320.067124,0.00032877,7]
[424918892,1781271071000,-320.067124,0.00032877,7]
[424918889,1781271071000,-320.067124,0.00032877,7]
[424918891,1781271071000,-320.067124,0.00032877,7]
[424918893,1781271071000,-320.067124,0.00032877,7]
[424918894,1781271071000,-320.067124,0.00032877,7]
[424918896,1781271071000,-320.067124,0.00032877,7]
[424918895,1781271071000,-320.067124,0.00032877,7]
[424918899,1781271071000,-151.0,0.00032877,7]
[424918928,1781271071000,-260.420536,0.00032877,7]
[424918966,1781271071000,-1102.2543695,0.00032943,7]
[424918927,1781271071000,-260.420536,0.00032877,7]
[424918954,1781271071000,-500.0,0.00032877,2]
[424918956,1781271071000,-500.0,0.00032877,2]
[424918957,1781271071000,-500.0,0.00032877,2]
[424918953,1781271071000,-500.0,0.00032877,2]
[424918963,1781271071000,-340.47,0.000329,120]
[424918967,1781271071000,-1157.50926483,0.00032943,7]
[424918965,1781271071000,-1092.35213361,0.00032943,7]
[424918972,1781271071000,-290.57890212,0.00032955,2]
[424918969,1781271071000,-152.0,0.00032953,4]
[424918970,1781271071000,-150.0,0.00032955,2]
[424918964,1781271071000,-1094.34238508,0.00032929,7]
[424918968,1781271071000,-1252.76398991,0.00032944,7]
[424918973,1781271071000,-500.0,0.00032955,2]
[424918974,1781271071000,-500.0,0.00032955,2]
[424918976,1781271071000,-508.40979557,0.00032955,2]
[424918983,1781271071000,-1000.0,0.00033,7]
[424918978,1781271071000,-1226.45453865,0.00032959,7]
[424918982,1781271071000,-151.0,0.00032969,3]
[424918977,1781271071000,-247.59187077,0.00032955,2]
[424918984,1781271071000,-164.58473457,0.00033,120]
[424918979,1781271071000,-1119.27236668,0.00032959,7]
[424918980,1781271071000,-1071.92575384,0.00032959,7]
[424918981,1781271071000,-1086.00550669,0.00032959,7]
[424918938,1781271071000,-150.0,0.00032877,3]
[424918975,1781271071000,-500.0,0.00032955,2]
[424918955,1781271071000,-500.0,0.00032877,2]
[424918951,1781271071000,-150.0,0.00032877,3]
[424918971,1781271071000,-150.0,0.00032955,2]
[424918961,1781271071000,-900.4,0.000329,120]
[424918929,1781271071000,-260.420536,0.00032877,7]
[424918960,1781271071000,-582.502896,0.00032877,120]
[424918932,1781271071000,-260.420536,0.00032877,7]
[424918931,1781271071000,-260.420536,0.00032877,7]
[424918933,1781271071000,-150.0,0.00032877,3]
[424918936,1781271071000,-150.0,0.00032877,3]
[424918934,1781271071000,-150.0,0.00032877,3]
[424918937,1781271071000,-150.0,0.00032877,3]
[424918935,1781271071000,-150.0,0.00032877,3]
[424918939,1781271071000,-150.0,0.00032877,3]
[424918940,1781271071000,-150.0,0.00032877,3]
[424918942,1781271071000,-150.0,0.00032877,3]
[424918941,1781271071000,-150.0,0.00032877,3]
[424918930,1781271071000,-260.420536,0.00032877,7]
[424918948,1781271071000,-150.0,0.00032877,3]
[424918949,1781271071000,-150.0,0.00032877,3]
[424918962,1781271071000,-212.79,0.000329,120]
[424918952,1781271071000,-290.0,0.00032877,3]
[424918946,1781271071000,-150.0,0.00032877,3]
[424918944,1781271071000,-150.0,0.00032877,3]
[424918958,1781271071000,-500.0,0.00032877,2]
[424918959,1781271071000,-430.85506059,0.00032877,2]
[424918945,1781271071000,-150.0,0.00032877,3]
[424918947,1781271071000,-150.0,0.00032877,3]
[424918950,1781271071000,-150.0,0.00032877,3]
[424918943,1781271071000,-150.0,0.00032877,3]
[424919027,1781271072000,-176.28,0.0003312,7]
[424919026,1781271072000,-250.0,0.00033116,2]
[424919025,1781271072000,-1216.54539207,0.00033088,7]
[424919015,1781271072000,-718.28,0.0003304,14]
[424919023,1781271072000,-1050.50159143,0.00033088,7]
[424919013,1781271072000,-1107.55963871,0.00033018,7]
[424919021,1781271072000,-150.0,0.0003308,2]
[424919014,1781271072000,-1140.14324319,0.00033018,7]
[424919020,1781271072000,-150.0,0.0003308,2]
[424919024,1781271072000,-1934.53629508,0.00033088,7]
[424919011,1781271072000,-20000.0,0.00033,120]
[424919022,1781271072000,-1252.26506008,0.00033088,7]
[424919019,1781271072000,-187.70845523,0.0003308,2]
[424919032,1781271072000,-577.562651,0.00033177,120]
[424919029,1781271072000,-502.60054144,0.00033123,120]
[424919030,1781271072000,-488.75829625,0.00033126,30]
[424919031,1781271072000,-1000.0,0.00033144,7]
[424919035,1781271072000,-320.0,0.00033224,28]
[424919033,1781271072000,-2523.58,0.00033192,120]
[424919038,1781271072000,-252.0,0.0003328,30]
[424919036,1781271072000,-150.0,0.00033226,2]
[424919037,1781271072000,-376.0,0.0003328,30]
[424919034,1781271072000,-243402.69996445,0.000332,2]
[424919043,1781271072000,-2328.0,0.0003328,30]
[424919040,1781271072000,-568.0,0.0003328,30]
[424919018,1781271072000,-150.0,0.0003308,2]
[424919028,1781271072000,-432.57904068,0.00033123,120]
[424919012,1781271072000,-20000.0,0.00033,120]
[424918986,1781271072000,-376.40572541,0.00033,120]
[424919017,1781271072000,-150.0,0.0003308,2]
[424919042,1781271072000,-187.0,0.0003328,30]
[424918985,1781271072000,-244.31639223,0.00033,120]
[424918988,1781271072000,-305.81413761,0.00033,120]
[424918990,1781271072000,-62938.79411554,0.00033,2]
[424918991,1781271072000,-651.07672488,0.00033,120]
[424918989,1781271072000,-162.76918121,0.00033,120]
[424918995,1781271072000,-162.88044551,0.00033,120]
[424918992,1781271072000,-189.39016739,0.00033,120]
[424918994,1781271072000,-188.6840366,0.00033,120]
[424918987,1781271072000,-304.04424387,0.00033,120]
[424918993,1781271072000,-189.9214738,0.00033,120]
[424918996,1781271072000,-185.65194979,0.00033,120]
[424919016,1781271072000,-150.0,0.0003308,2]
[424918998,1781271072000,-5235.24035664,0.00033,30]
[424919005,1781271072000,-3000.0,0.00033,20]
[424918997,1781271072000,-161.2155328,0.00033,120]
[424919006,1781271072000,-198.27992594,0.00033,120]
[424919003,1781271072000,-5000.0,0.00033,3]
[424918999,1781271072000,-192.78067843,0.00033,120]
[424919000,1781271072000,-2610.31866207,0.00033,2]
[424919007,1781271072000,-20000.0,0.00033,120]
[424919008,1781271072000,-20000.0,0.00033,120]
[424919002,1781271072000,-52380.88932613,0.00033,2]
[424919001,1781271072000,-33973.0,0.00033,25]
[424919010,1781271072000,-500.0,0.00033,120]
[424919009,1781271072000,-3353.92554259,0.00033,120]
[424919004,1781271072000,-351.6765903,0.00033,120]
[424919041,1781271072000,-978.0,0.0003328,30]
[424919088,1781271072000,-651.07672488,0.000339,120]
[424919045,1781271072000,-243.0,0.0003328,30]
[424919078,1781271072000,-150.0,0.00033825,120]
[424919075,1781271072000,-150.0,0.00033815,2]
[424919076,1781271072000,-150.0,0.00033815,2]
[424919077,1781271072000,-150.0,0.00033815,2]
[424919080,1781271072000,-185.48,0.00033869,9]
[424919082,1781271072000,-164.58473457,0.000339,120]
[424919081,1781271072000,-320.0,0.00033892,32]
[424919086,1781271072000,-305.81413761,0.000339,120]
[424919083,1781271072000,-244.31639223,0.000339,120]
[424919087,1781271072000,-162.76918121,0.000339,120]
[424919091,1781271072000,-162.88044551,0.000339,120]
[424919084,1781271072000,-376.40572541,0.000339,120]
[424919070,1781271072000,-585.418035,0.00033777,120]
[424919089,1781271072000,-188.6840366,0.000339,120]
[424919093,1781271072000,-900.4,0.000339,120]
[424919092,1781271072000,-161.2155328,0.000339,120]
[424919094,1781271072000,-203.77979373,0.000339,120]
[424919095,1781271072000,-1516.11,0.000339,120]
[424919096,1781271072000,-3270.0,0.000339,12]
[424919102,1781271072000,-3312.0,0.00034,20]
[424919098,1781271072000,-160.0,0.00033974,11]
[424919097,1781271072000,-2523.58,0.00033932,120]
[424919101,1781271072000,-50894.24855204,0.00034,2]
[424919099,1781271072000,-444.62610553,0.0003398,30]
[424919100,1781271072000,-18518.73598778,0.00034,2]
[424919039,1781271072000,-303.0,0.0003328,30]
[424919090,1781271072000,-189.9214738,0.000339,120]
[424919072,1781271072000,-160.0,0.00033812,11]
[424919085,1781271072000,-304.04424387,0.000339,120]
[424919073,1781271072000,-150.0,0.00033815,2]
[424919055,1781271072000,-596.109771,0.00033477,120]
[424919044,1781271072000,-383.0,0.0003328,30]
[424919071,1781271072000,-252.68,0.000338,6]
[424919050,1781271072000,-58633.7764318,0.000334,2]
[424919048,1781271072000,-827.0,0.0003328,30]
[424919046,1781271072000,-807.0,0.0003328,30]
[424919054,1781271072000,-150.334585,0.00033459,2]
[424919049,1781271072000,-1000.0,0.00033288,7]
[424919053,1781271072000,-1000.0,0.00033432,7]
[424919051,1781271072000,-500.0,0.00033418,60]
[424919052,1781271072000,-231.52351058,0.00033419,4]
[424919056,1781271072000,-496.53598069,0.0003349,120]
[424919060,1781271072000,-185.07,0.00033573,2]
[424919058,1781271072000,-505.0,0.000335,16]
[424919047,1781271072000,-187.0,0.0003328,30]
[424919057,1781271072000,-1236.71535378,0.000335,2]
[424919062,1781271072000,-573.27,0.00033585,2]
[424919059,1781271072000,-320.0,0.00033563,30]
[424919061,1781271072000,-1000.0,0.00033577,7]
[424919063,1781271072000,-299.17,0.00033611,7]
[424919064,1781271072000,-320.91,0.0003362,5]
[424919067,1781271072000,-1000.0,0.00033721,7]
[424919066,1781271072000,-168.0,0.0003372,11]
[424919065,1781271072000,-488.75829625,0.00033624,30]
[424919079,1781271072000,-1000.0,0.00033865,7]
[424919069,1781271072000,-5877.0,0.0003374,10]
[424919068,1781271072000,-2325.0,0.00033734,11]
[424919074,1781271072000,-150.0,0.00033815,2]
[424919104,1781271073000,-5079.214498,0.00034,4]
[424919105,1781271073000,-17748.75070998,0.00034,30]
[424919103,1781271073000,-1019.0,0.00034,20]
[424919117,1781271074000,-13164.65924505,0.00034,30]
[424919123,1781271074000,-570.66,0.00013698,2]
[424919122,1781271074000,-570.66,0.00013698,2]
[424919126,1781271074000,-977.19,0.00014946,2]
[424919121,1781271074000,-570.66,0.00013698,2]
[424919120,1781271074000,-23294.76980966,0.00011099,2]
[424919119,1781271074000,-310.0,0.00011099,2]
[424919115,1781271074000,-490.0,0.00034,30]
[424919116,1781271074000,-503.47737862,0.00034,30]
[424919109,1781271074000,-1548.68900525,0.00034,30]
[424919112,1781271074000,-3061.17696543,0.00034,30]
[424919114,1781271074000,-3337.54697457,0.00034,30]
[424919108,1781271074000,-131.29450209,0.00025,2]
[424919111,1781271074000,-1351.87551636,0.00034,30]
[424919110,1781271074000,-864.7321531,0.00034,30]
[424919118,1781271074000,-3015.00009,0.00034,30]
[424919106,1781271074000,-977.19,0.00013698,2]
[424919107,1781271074000,-706.70549791,0.00025,2]
[424919127,1781271074000,-977.19,0.00014946,2]
[424919113,1781271074000,-260.420536,0.00032877,7]
[424919125,1781271074000,-977.19,0.00014899,2]
[424919140,1781271074000,-260.420536,0.00032877,7]
[424919124,1781271074000,-570.66,0.00013698,2]
[424919128,1781271074000,-977.19,0.00014946,2]
[424919149,1781271074000,-177.57473726,0.00034,60]
[424919146,1781271074000,-260.520561,0.00034,120]
[424919143,1781271074000,-2863.67,0.00034,3]
[424919145,1781271074000,-1000.0,0.00034,120]
[424919144,1781271074000,-4206.14807431,0.00034,3]
[424919147,1781271074000,-177.57473726,0.00034,30]
[424919142,1781271074000,-7412.19287568,0.00034,7]
[424919135,1781271074000,-151.0,0.00032877,7]
[424919138,1781271074000,-260.420536,0.00032877,7]
[424919148,1781271074000,-177.57473726,0.00034,30]
[424919131,1781271074000,-1475.35,0.00023375,7]
[424919133,1781271074000,-151.0,0.00032877,7]
[424919141,1781271074000,-292282.09196164,0.00034,30]
[424919130,1781271074000,-1475.35,0.00021687,2]
[424919137,1781271074000,-151.0,0.00032877,7]
[424919129,1781271074000,-1475.35,0.0002,2]
[424919132,1781271074000,-260.420536,0.00032877,7]
[424919139,1781271074000,-151.0,0.00032877,7]
[424919134,1781271074000,-260.420536,0.00032877,7]
[424919136,1781271074000,-260.420536,0.00032877,7]
[424919171,1781271075000,-163.0,0.00034247,2]
[424919179,1781271075000,-500.0,0.00034247,14]
[424919166,1781271075000,-151.91799802,0.00034241,2]
[424919174,1781271075000,-160.0,0.00034247,2]
[424919172,1781271075000,-246.0,0.00034247,2]
[424919173,1781271075000,-150.0,0.00034247,2]
[424919176,1781271075000,-150.0,0.00034247,2]
[424919177,1781271075000,-161.0,0.00034247,2]
[424919188,1781271075000,-2328.0,0.0003428,30]
[424919185,1781271075000,-568.0,0.0003428,30]
[424919180,1781271075000,-500.0,0.00034247,14]
[424919181,1781271075000,-151.38189275,0.00034247,14]
[424919183,1781271075000,-252.0,0.0003428,30]
[424919186,1781271075000,-978.0,0.0003428,30]
[424919184,1781271075000,-303.0,0.0003428,30]
[424919182,1781271075000,-376.0,0.0003428,30]
[424919168,1781271075000,-302.1259603,0.00034247,120]
[424919178,1781271075000,-247.0,0.00034247,2]
[424919169,1781271075000,-600.0,0.00034247,120]
[424919159,1781271075000,-256.24,0.00034132,120]
[424919170,1781271075000,-150.0,0.00034247,2]
[424919187,1781271075000,-187.0,0.0003428,30]
[424919153,1781271075000,-1000.0,0.00034009,7]
[424919152,1781271075000,-150.0,0.00034002,2]
[424919150,1781271075000,-177.57473726,0.00034,60]
[424919151,1781271075000,-750.0,0.00034,2]
[424919155,1781271075000,-573.239114,0.00034078,120]
[424919158,1781271075000,-1021.602673,0.00034129,120]
[424919154,1781271075000,-150.0,0.00034022,120]
[424919157,1781271075000,-488.75829625,0.00034122,30]
[424919160,1781271075000,-1000.0,0.00034153,7]
[424919156,1781271075000,-1794.4,0.000341,120]
[424919161,1781271075000,-160.0,0.00034169,11]
[424919163,1781271075000,-2325.0,0.00034198,11]
[424919162,1781271075000,-1088.1,0.00034182,7]
[424919164,1781271075000,-320.0,0.00034213,35]
[424919165,1781271075000,-500.0,0.00034222,5]
[424919167,1781271075000,-177.58630876,0.00034246,120]
[424919175,1781271075000,-271.0,0.00034247,2]
[424919189,1781271075000,-383.0,0.0003428,30]
[424919231,1781271075000,-329934.47495325,0.000344,14]
[424919191,1781271075000,-807.0,0.0003428,30]
[424919219,1781271075000,-151.0,0.00034373,2]
[424919215,1781271075000,-231.7,0.00034363,120]
[424919217,1781271075000,-151.0,0.00034373,2]
[424919221,1781271075000,-151.0,0.00034373,2]
[424919214,1781271075000,-150.0,0.00034332,120]
[424919218,1781271075000,-151.0,0.00034373,2]
[424919213,1781271075000,-215.11,0.000343,30]
[424919216,1781271075000,-151.0,0.00034372,2]
[424919190,1781271075000,-243.0,0.0003428,30]
[424919222,1781271075000,-151.0,0.00034373,2]
[424919226,1781271075000,-674581.0579102,0.00034378,2]
[424919227,1781271075000,-10317.8354675,0.00034387,2]
[424919225,1781271075000,-30000.0,0.00034378,2]
[424919224,1781271075000,-561.232942,0.00034378,120]
[424919229,1781271075000,-2500.0,0.00034398,2]
[424919228,1781271075000,-151.0,0.00034397,14]
[424919230,1781271075000,-792.30538809,0.000344,2]
[424919220,1781271075000,-151.5,0.00034373,2]
[424919211,1781271075000,-1000.0,0.00034298,7]
[424919223,1781271075000,-151.0,0.00034373,2]
[424919210,1781271075000,-151.0,0.00034294,2]
[424919212,1781271075000,-1000.0,0.000343,20]
[424919192,1781271075000,-187.0,0.0003428,30]
[424919196,1781271075000,-151.0,0.00034287,2]
[424919194,1781271075000,-151.0,0.00034287,2]
[424919195,1781271075000,-151.0,0.00034287,2]
[424919197,1781271075000,-151.0,0.00034287,2]
[424919199,1781271075000,-151.0,0.00034287,2]
[424919200,1781271075000,-151.0,0.00034287,2]
[424919201,1781271075000,-151.0,0.00034287,2]
[424919193,1781271075000,-827.0,0.0003428,30]
[424919198,1781271075000,-151.0,0.00034287,2]
[424919202,1781271075000,-151.0,0.00034287,2]
[424919203,1781271075000,-151.0,0.00034287,2]
[424919205,1781271075000,-151.0,0.00034287,2]
[424919208,1781271075000,-150.0,0.0003429,120]
[424919206,1781271075000,-151.58,0.00034287,2]
[424919204,1781271075000,-151.24,0.00034287,2]
[424919207,1781271075000,-151.0,0.00034287,2]
[424919209,1781271075000,-1468.1,0.0003429,2]
[424919232,1781271078000,-207.3343278,0.00029762,2]
[424919233,1781271078000,-3607.42703584,0.000344,14]
[424919243,1781271079000,-977.19,0.00014946,2]
[424919255,1781271079000,-151.0,0.00032877,7]
[424919253,1781271079000,-151.0,0.00032877,7]
[424919250,1781271079000,-414.66865561,0.00030341,2]
[424919251,1781271079000,-161.12651234,0.00030341,7]
[424919257,1781271079000,-151.0,0.00032877,7]
[424919248,1781271079000,-1475.35,0.00028436,7]
[424919246,1781271079000,-1475.35,0.00025062,7]
[424919245,1781271079000,-1429.19604565,0.00022407,2]
[424919235,1781271079000,-570.66,0.00013698,2]
[424919242,1781271079000,-977.19,0.00014946,2]
[424919241,1781271079000,-570.66,0.00013698,2]
[424919240,1781271079000,-570.66,0.00013698,2]
[424919239,1781271079000,-570.66,0.00013698,2]
[424919238,1781271079000,-570.66,0.00013698,2]
[424919237,1781271079000,-570.66,0.00013698,2]
[424919247,1781271079000,-1475.35,0.00026749,7]
[424919236,1781271079000,-570.66,0.00013698,2]
[424919234,1781271079000,-41722.7157673,0.00011099,2]
[424919244,1781271079000,-977.22737414,0.00014946,2]
[424919256,1781271079000,-260.420536,0.00032877,7]
[424919263,1781271079000,-176.1,0.00013698,2]
[424919252,1781271079000,-1475.35,0.00031811,14]
[424919249,1781271079000,-1475.35,0.00030124,7]
[424919275,1781271079000,-526.31241775,0.00011385,2]
[424919273,1781271079000,-1893.12,0.00011385,2]
[424919274,1781271079000,-656.0,0.00011385,2]
[424919270,1781271079000,-511.63701206,0.00011385,2]
[424919272,1781271079000,-572.01969778,0.00011385,2]
[424919271,1781271079000,-293.47302106,0.00011385,2]
[424919267,1781271079000,-482.46013207,0.00011385,2]
[424919268,1781271079000,-9961.84495456,0.00011385,2]
[424919276,1781271079000,-52.69275647,0.00013698,2]
[424919265,1781271079000,-1379.34074269,0.00011385,2]
[424919266,1781271079000,-5097.43041389,0.00011385,2]
[424919264,1781271079000,-4199.58,0.000344,14]
[424919261,1781271079000,-733.87205187,0.000344,14]
[424919262,1781271079000,-394.56,0.00013698,2]
[424919260,1781271079000,-30486.66889986,0.000344,14]
[424919259,1781271079000,-225.62792,0.00032877,7]
[424919258,1781271079000,-260.420531,0.00032877,7]
[424919254,1781271079000,-260.420536,0.00032877,7]
[424919269,1781271079000,-2231.13141779,0.00011385,2]
[424919278,1781271117000,-2249.98147386,0.000108,2]
[424919279,1781271118000,-2249.98147386,0.000108,2]
[424919280,1781271139000,-1548.68900525,0.000108,2]
[424919281,1781271159000,-151.0,0.00010797,2]
[424919282,1781271316000,-864.7321531,0.00010584,2]
[424919283,1781271337000,-864.7321531,0.00010584,2]
[424919284,1781271357000,-572.2126938,0.00010584,2]
[424919285,1781271410000,-300.0,0.000106,3]
[424919288,1781271463000,-180.181,0.00010584,2]
[424919289,1781271516000,-387.603441,0.00010584,2]
[424919290,1781271570000,-196.59131848,0.00010642,2]
[424919291,1781271616000,-600.0,0.000107,3]
[424919292,1781271668000,-500.0,0.00010599,2]
[424919293,1781271722000,-500.0,0.00010599,2]
[424919294,1781271812000,152.0,9.458e-05,7]
[424919296,1781272061000,-180.182,0.00010584,2]
[424919295,1781272061000,-792.78,0.00010254,2]
[424919298,1781272061000,-243.23268305,0.00010592,2]
[424919301,1781272061000,-500.0,0.00010599,2]
[424919297,1781272061000,-1841.342,0.00010584,2]
[424919302,1781272061000,-655.55864645,0.000106,2]
[424919300,1781272061000,-286.9046705,0.00010599,2]
[424919299,1781272061000,-500.0,0.00010599,2]
[424919303,1781272103000,-200.0,0.00010214,2]
[424919307,1781272104000,-3264.30433248,0.00010699,2]
[424919304,1781272104000,-7679.69566752,0.000106,2]
[424919306,1781272104000,-160.0,0.00010607,2]
[424919305,1781272104000,-300.0,0.000106,3]
[424919308,1781272156000,-262.04617996,9.551e-05,2]
[424919309,1781272157000,-270.46424798,9.899e-05,2]
[424919310,1781272210000,-951.76,0.00010334,2]
[424919312,1781272211000,-3212.45239425,0.00010351,2]
[424919311,1781272211000,-3212.45239425,0.00010351,2]
[424919313,1781272211000,-1038.86382622,0.00010351,2]
[424919314,1781272215000,505.74039542,0.00010027,2]
[424919346,1781272233000,-250.0,0.00010506,2]
[424919352,1781272233000,-161.81798421,0.000106,2]
[424919350,1781272233000,-191.49836453,0.00010599,2]
[424919348,1781272233000,-3486.27378023,0.00010599,2]
[424919347,1781272233000,-761.45,0.00010529,2]
[424919343,1781272233000,-37610.00138528,0.00010351,2]
[424919359,1781272233000,-264.10525866,0.00010698,2]
[424919340,1781272233000,-448.42004428,0.00010278,2]
[424919342,1781272233000,-1000.0,0.0001035,2]
[424919344,1781272233000,-1000.0,0.00010406,2]
[424919341,1781272233000,-131.92050546,0.00010278,2]
[424919339,1781272233000,-181.10945026,0.00010278,2]
[424919338,1781272233000,-255.70960458,0.00010027,2]
[424919345,1781272233000,-300.0,0.00010506,2]
[424919351,1781272233000,-164.27986953,0.00010599,2]
[424919362,1781272233000,-435.84,0.00010699,2]
[424919357,1781272233000,-2000.0,0.00010698,2]
[424919349,1781272233000,-440.05204332,0.00010599,2]
[424919368,1781272233000,-54049.90290401,0.00010699,2]
[424919366,1781272233000,-65702.63004623,0.00010699,2]
[424919364,1781272233000,-299.99,0.00010699,2]
[424919363,1781272233000,-3709.51,0.00010699,2]
[424919365,1781272233000,-9999.99,0.00010699,2]
[424919367,1781272233000,-49094.95547311,0.00010699,2]
[424919360,1781272233000,-254.10051894,0.00010698,2]
[424919353,1781272233000,-174.96,0.00010644,2]
[424919356,1781272233000,-731.09794975,0.00010689,2]
[424919354,1781272233000,-9999.99,0.00010644,2]
[424919358,1781272233000,-250.0,0.00010698,2]
[424919355,1781272233000,-731.09794975,0.00010689,2]
[424919361,1781272233000,-999.99,0.00010699,2]
[424919392,1781272240000,-191.94,0.00010989,2]
[424919395,1781272240000,-166.66,0.00011132,2]
[424919394,1781272240000,-45029.84925059,0.00011099,2]
[424919393,1781272240000,-761.45,0.0001103,2]
[424919396,1781272240000,-611.46,0.0001119,2]
[424919399,1781272240000,-300.0,0.00011367,2]
[424919404,1781272240000,-161.56,0.00011731,2]
[424919402,1781272240000,-45029.84925055,0.00011559,2]
[424919401,1781272240000,-792.78,0.00011536,2]
[424919405,1781272240000,-255.0,0.00011737,2]
[424919407,1781272240000,-175.62,0.00012329,2]
[424919406,1781272240000,-166.66,0.00011824,2]
[424919388,1781272240000,-1300.0,0.000109,3]
[424919400,1781272240000,-166.66,0.00011478,2]
[424919397,1781272240000,-150.0,0.00011233,2]
[424919391,1781272240000,-150.0,0.00010959,2]
[424919383,1781272240000,-761.45,0.00010779,2]
[424919390,1781272240000,-166.66,0.00010959,2]
[424919398,1781272240000,-166.66,0.00011305,2]
[424919373,1781272240000,-184.87368106,0.00010643,2]
[424919374,1781272240000,-2327888.20724417,0.00010699,2]
[424919376,1781272240000,-150.0,0.00010699,2]
[424919377,1781272240000,-150.99,0.00010699,2]
[424919375,1781272240000,-1500000.0,0.00010699,2]
[424919379,1781272240000,-6052.509,0.000107,2]
[424919381,1781272240000,-99380.3333,0.000107,2]
[424919378,1781272240000,-171.36030383,0.000107,2]
[424919384,1781272240000,-1000.0,0.00010798,2]
[424919380,1781272240000,-600.0,0.000107,3]
[424919382,1781272240000,-160.0,0.00010722,2]
[424919386,1781272240000,-279.15908737,0.00010799,3]
[424919385,1781272240000,-42879.01286272,0.00010799,2]
[424919389,1781272240000,-500.0,0.00010958,2]
[424919387,1781272240000,-900.0,0.000108,3]
[424919403,1781272240000,-166.66,0.00011651,2]
[424919424,1781272240000,-500.0,0.00013698,2]
[424919409,1781272240000,-174.96,0.00012401,2]
[424919427,1781272240000,-323.84,0.00013698,2]
[424919434,1781272240000,-808.21,0.00013698,2]
[424919445,1781272240000,-808.21,0.00013698,2]
[424919444,1781272240000,-808.21,0.00013698,2]
[424919436,1781272240000,-808.21,0.00013698,2]
[424919446,1781272240000,-808.21,0.00013698,2]
[424919448,1781272240000,-808.21,0.00013698,2]
[424919447,1781272240000,-808.21,0.00013698,2]
[424919441,1781272240000,-808.21,0.00013698,2]
[424919440,1781272240000,-808.21,0.00013698,2]
[424919438,1781272240000,-808.21,0.00013698,2]
[424919442,1781272240000,-808.21,0.00013698,2]
[424919449,1781272240000,-808.21,0.00013698,2]
[424919450,1781272240000,-808.21,0.00013698,2]
[424919408,1781272240000,-175.62,0.00012329,2]
[424919430,1781272240000,-808.21,0.00013698,2]
[424919423,1781272240000,-500.0,0.00013698,2]
[424919443,1781272240000,-808.21,0.00013698,2]
[424919428,1781272240000,-808.21,0.00013698,2]
[424919426,1781272240000,-500.0,0.00013698,2]
[424919413,1781272240000,-433.0,0.00012871,2]
[424919412,1781272240000,-792.78,0.00012818,2]
[424919414,1781272240000,-500.0,0.00012941,2]
[424919411,1781272240000,-611.46,0.00012588,2]